Cogmind - Beta 15 @@@ ROGUE MODE // 2025.07.16 @ 21:40:15 Player: erfael Result: Self-destructed Performance ------------- Evolutions (4) 2000 Regions Visited (9) 1800 Robots Destroyed (45) 225 Value Destroyed (1213) 1213 Prototype IDs (2) 40 Alien Tech Used (0) 0 Bonus (14) 14 TOTAL SCORE: 5292 Bonus ------- Follower Combat Kills 14 Cogmind --------- Core Integrity 756/850 Matter 119/300 Energy 100/100 System Corruption 0% Temperature Cool (0) Movement Walking (190) Ox1 Location -6/Factory Parts ------- > --- POWER (2) -------- (None) > --- PROPULSION (5) --- Improved Carbon-fiber Leg > --- UTILITY (5) ------ Large Storage Unit Terrain Scan Processor Weapon Cycler > --- WEAPON (3) ------- Gauss Cannon > --- INVENTORY (15) --- Light Ion Engine Light Ion Engine Heavy Deuterium Engine Aluminum Leg Aluminum Leg Aluminum Leg Aluminum Leg Gravmag Array Large Storage Unit Large Storage Unit Experimental Sensor Array Improved Light Armor Plating Gauss Rifle Chainsword Peak State ------------ > --- POWER ------------ Light Ion Engine Angular Momentum Engine > --- PROPULSION ------- Aluminum Leg Carbon-fiber Leg Carbon-fiber Leg Improved Carbon-fiber Leg Improved Carbon-fiber Leg > --- UTILITY ---------- Large Storage Unit Terrain Scan Processor Advanced Targeting Computer Weapon Cycler Layered Light Armor Plating > --- WEAPON ----------- Minigun Gauss Rifle Heavy Rocket Launcher > --- INVENTORY -------- Light Ion Engine Light Ion Engine Heavy Deuterium Engine Aluminum Leg Aluminum Leg Aluminum Leg Aluminum Leg Gravmag Array Large Storage Unit Experimental Sensor Array Improved Light Armor Plating Gauss Cannon Chainsword [Rating: 50] Favorites ----------- Power Deuterium Engine Engine Deuterium Engine Power Core Light Nuclear Core Propulsion Aluminum Leg Leg Aluminum Leg Utility Large Storage Unit Device Seismic Detector Storage Large Storage Unit Processor Improved Terrain Scan Processor Protection Layered Light Armor Plating Weapon Assault Rifle Energy Gun Medium Laser Ballistic Gun Assault Rifle Ballistic Cannon Gauss Cannon Launcher Heavy Rocket Launcher Slashing Weapon Chainsword Build | -11 -10 -10 -10 -9 -8 -7 -7 -7 -6 ------- Run | Yrd Mat Min Exi Min Mat Fac Low Low Fac Slots Evolved 8 | . . . . . 4 2 . . 2 Power 1 | . . . . . . 1 . . . Propulsion 3 | . . . . . 2 . . . 1 Utility 3 | . . . . . 2 1 . . . Weapon 1 | . . . . . . . . . 1 Parts Attached 48 | 8 3 2 . 6 9 6 4 2 8 Power 9 | 2 . 1 . 1 2 . . . 3 Engine 7 | 2 . 1 . 1 1 . . . 2 Core 2 | . . . . . 1 . . . 1 Reactor . | . . . . . . . . . . Propulsion 13 | 2 1 . . 3 3 1 1 1 1 Treads . | . . . . . . . . . . Leg 13 | 2 1 . . 3 3 1 1 1 1 Wheel . | . . . . . . . . . . Hover . | . . . . . . . . . . Flight . | . . . . . . . . . . Utility 13 | 2 1 . . . 2 3 2 1 2 Device 5 | 1 . . . . 1 3 . . . Storage 3 | 1 1 . . . . . . . 1 Processor 3 | . . . . . 1 . . 1 1 Hackware . | . . . . . . . . . . Protection 2 | . . . . . . . 2 . . Artifact . | . . . . . . . . . . Weapon 13 | 2 1 1 . 2 2 2 1 . 2 Energy Gun 1 | 1 . . . . . . . . . Energy Cannon . | . . . . . . . . . . Ballistic Gun 6 | 1 . 1 . 1 2 . . . 1 Ballistic Cannon 1 | . . . . . . . . . 1 Launcher 4 | . 1 . . 1 . 1 1 . . Special Weapon . | . . . . . . . . . . Impact Weapon . | . . . . . . . . . . Slashing Weapon 1 | . . . . . . 1 . . . Piercing Weapon . | . . . . . . . . . . Special Melee Weapon . | . . . . . . . . . . Unidentified Prototypes . | . . . . . . . . . . Parts Lost 16 | . . . . 1 2 . 1 . 12 Power 3 | . . . . . 1 . . . 2 Propulsion 5 | . . . . . 1 . . . 4 Utility 4 | . . . . . . . 1 . 3 Weapon 4 | . . . . 1 . . . . 3 Highest Loss Streak 10 | . . . . 1 2 . 1 . 10 To Critical Strikes . | . . . . . . . . . . Average Backups 13 | 2 8 14 15 14 13 14 14 14 13 Power 1 | . 1 2 2 2 2 1 2 2 2 Propulsion 5 | 1 3 5 5 5 4 5 5 5 5 Utility 3 | . 1 3 4 4 3 2 2 3 3 Weapon 3 | . 2 4 3 3 3 5 4 4 2 Tool/Special . | . . . . . . . . . . Unused Backups 19 | . . 2 1 4 . 2 3 1 6 Power 2 | . . 1 . . . . . . 1 Propulsion 6 | . . . . 2 . . 1 . 3 Utility 4 | . . . . 2 . . . . 2 Weapon 7 | . . 1 1 . . 2 2 1 . Tool/Special . | . . . . . . . . . . Average Slot Usage (%) 97 | . 100 100 92 99 97 96 99 100 95 Engine 10 | . 14 14 14 14 7 4 7 7 6 Core 2 | . . . . . . 7 7 7 4 Leg 29 | . 28 28 28 28 35 29 29 30 32 Device 15 | . 14 14 14 14 17 22 17 15 11 Storage 10 | . 14 14 14 14 9 7 7 7 6 Processor 3 | . . . . . 7 7 7 7 6 Protection 1 | . . . . . . . 5 7 5 Energy Gun 1 | . 13 9 . . . . . . . Ballistic Gun 18 | . 14 18 21 26 18 13 14 15 15 Peak Build Rating 50 | 7 8 11 11 16 30 37 41 41 50 Average Rating 23 | 5 7 10 10 14 27 35 38 40 45 On Entrance 19 | . 7 8 11 11 16 28 37 37 41 Naked Turns . | . . . . . . . . . . Heaviest Build 58 | 15 31 34 33 34 38 38 44 41 58 Greatest Support 76 | 20 20 20 20 30 55 63 68 66 76 Greatest Overweight (x) 1 | 1 1 1 1 1 . . . . . Average Overweight (x) . | . . 1 1 1 . . . . . Largest Inventory Capacity 15 | 8 15 15 15 15 15 15 15 15 15 Average Capacity 14 | 7 14 15 15 15 15 15 15 15 15 Most Carried 15 | 5 13 15 15 15 15 15 15 15 15 Average Carried 13 | 2 8 14 14 14 13 14 14 14 14 Final Capacity 15 | 8 15 15 15 15 15 15 15 15 15 Final Carried 15 | 5 13 15 15 15 15 15 14 15 15 Class Distribution -------------------- 68% | Mutant 24% | Scavenger-Mutant 4% | Derelict-Gunner Dominant Class ---------------- Mutant | -10/Materials Mutant | -10/Mines Mutant | -10/Exiles Mutant | -9/Mines Scavenger-Mutant | -8/Materials Scavenger-Mutant | -7/Factory Mutant | -7/Lower Caves Mutant | -7/Lower Caves Derelict-Gunner | -6/Factory Resources | -11 -10 -10 -10 -9 -8 -7 -7 -7 -6 ----------- Run | Yrd Mat Min Exi Min Mat Fac Low Low Fac Matter Collected 1569 | 185 185 62 . 245 261 26 394 96 115 Remotely . | . . . . . . . . . . Salvage Created 1009 | 38 199 . . 86 384 98 35 20 149 Parts 84 | 8 12 . . 6 25 7 7 . 19 Haulers Intercepted 1 | . . . . . . 1 . . . Recyclers Shooed 2 | . . . . . . 2 . . . Parts Field Recycled . | . . . . . . . . . . Retrieved Matter . | . . . . . . . . . . Parts Self-Destructed 4 | . . . . . . . 4 . . Prevented . | . . . . . . . . . . Kills | -11 -10 -10 -10 -9 -8 -7 -7 -7 -6 ------- Run | Yrd Mat Min Exi Min Mat Fac Low Low Fac Combat Hostiles Destroyed 38 | . 5 . . 4 12 3 5 1 8 Guns 20 | . 2 . . 2 12 1 . 1 2 Cannons 1 | . . . . . . . . . 1 AOE 17 | . 3 . . 2 . 2 5 . 5 Classes Destroyed 11 | 1 4 . . 1 1 1 1 . 2 Builder 3 | . . . . . . . . . 3 Tunneler 2 | 2 . . . . . . . . . Hauler 1 | . . . . . . 1 . . . Recycler 1 | . 1 . . . . . . . . Operator 1 | . 1 . . . . . . . . Swarmer 24 | . 3 . . 1 6 3 4 . 7 Grunt 9 | . 2 . . 2 5 . . . . Sentry 1 | . . . . . 1 . . . . Hunter 2 | . . . . . . . 1 1 . Programmer 1 | . . . . . . . . . 1 Assembled 1 | . . . . 1 . . . . . Best Kill Streak 10 | 1 3 . . 1 7 3 4 1 10 Combat Bots Only 7 | . 3 . . 1 7 3 4 1 7 Max Kills in Single Turn 4 | 1 2 . . 1 2 3 2 1 4 Gunslinging 1 | . . . . . 1 . . . 1 Exploded 2 | . 2 . . 1 . 2 2 . 2 Melee . | . . . . . . . . . . Uniques/NPCs Destroyed . | . . . . . . . . . . Combat | -11 -10 -10 -10 -9 -8 -7 -7 -7 -6 -------- Run | Yrd Mat Min Exi Min Mat Fac Low Low Fac Hostile Shots Fired 284 | . 29 . . 34 51 31 22 2 115 Missed 96 | . 9 . . 9 17 17 10 1 33 Hits 188 | . 20 . . 25 34 14 12 1 82 Melee 4 | . . . . . . . 4 . . Projectile 184 | . 20 . . 25 34 14 8 1 82 Critical Strikes 5 | . . . . . . . . . 5 Damage Taken 2642 | . 257 58 . 329 370 118 207 . 1303 Core 309 | . 39 5 . 81 44 29 17 . 94 Absorbed by Shields . | . . . . . . . . . . Regen/Repaired (Parts) 50 | . . . . . . 50 . . . Core Remaining (%) 83 | 100 . . . 50 92 . . 93 . Volleys Fired 115 | 3 21 . . 22 27 9 11 5 17 Largest 3 | 2 2 . . 2 2 2 2 2 3 Hottest 87 | 70 70 . . 50 51 64 67 51 87 Shots Fired 224 | 6 42 . . 40 54 15 22 10 35 Gun 194 | 6 40 . . 32 54 14 14 10 24 Cannon 7 | . . . . . . . . . 7 Launcher 23 | . 2 . . 8 . 1 8 . 4 Special . | . . . . . . . . . . Kinetic 179 | 3 21 . . 32 54 14 14 10 31 Thermal 22 | 3 19 . . . . . . . . Explosive 23 | . 2 . . 8 . 1 8 . 4 Electromagnetic . | . . . . . . . . . . Robot Hit Streak 18 | 1 9 . . 14 8 18 2 4 5 Robot Miss Streak 4 | 2 2 . . 1 4 1 3 3 2 Penetration Max 1 | . . . . . 1 . . . . Secondary Targets 5 | . . . . . 4 . . . 1 Max Gunslinging Chain 1 | . . . . . 1 . . . 1 Shots Hit Robots 130 | 3 27 . . 24 34 11 3 7 21 Core Hits 72 | 2 11 . . 10 17 6 8 1 17 Critical Kills . | . . . . . . . . . . Critical Parts Destroyed 2 | . . . . . 1 . 1 . . Critical Strikes 3 | . . . . . 1 . 1 . 1 Destroy 2 | . . . . . 1 . 1 . . Blast 1 | . . . . . . . . . 1 Melee Attacks 9 | . . . . . . 3 . . 6 Impact . | . . . . . . . . . . Slashing 9 | . . . . . . 3 . . 6 Piercing . | . . . . . . . . . . Sneak Attacks . | . . . . . . . . . . Combat Hostiles . | . . . . . . . . . . Follow-up Attacks . | . . . . . . . . . . Damage Inflicted 3646 | 54 484 . . 386 650 317 531 65 1159 Guns 1860 | 54 340 . . 214 648 168 54 65 317 Cannons 120 | . . . . . . . . . 120 Explosions 1664 | . 144 . . 172 . 149 477 . 722 Melee . | . . . . . . . . . . Ramming 2 | . . . . . 2 . . . . Kinetic 1793 | 29 178 . . 214 648 168 54 65 437 Thermal 245 | 25 162 . . . . . . . 58 Explosive 1606 | . 144 . . 172 . 149 477 . 664 Electromagnetic . | . . . . . . . . . . Impact . | . . . . . . . . . . Slashing . | . . . . . . . . . . Piercing . | . . . . . . . . . . Highest Corruption 1 | . . 1 1 1 . . . . . Average Corruption 1 | . . 1 1 1 . . . . . Corruption Purged . | . . . . . . . . . . Corruption Blocked . | . . . . . . . . . . Effects 15 | . . . 13 2 . . . . . Message Errors 2 | . . . 2 . . . . . . Matter Fused 3 | . . . 2 1 . . . . . Heat Flow Errors 4 | . . . 4 . . . . . . Energy Discharges 3 | . . . 3 . . . . . . Data Loss (minor) 2 | . . . 2 . . . . . . Weapon Failures 1 | . . . . 1 . . . . . Overload Shots . | . . . . . . . . . . Overflow Damage 52 | . . . . 2 . 6 . . 44 Projectiles 10 | . . . . . . . . . 10 Explosions 42 | . . . . 2 . 6 . . 34 Melee . | . . . . . . . . . . Knockbacks 1 | . . . . . . . . . 1 Impact . | . . . . . . . . . . Kinetic 1 | . . . . . . . . . 1 Secondary . | . . . . . . . . . . Self-Inflicted Damage 110 | . 11 . . 65 . . 34 . . Shots 6 | . 2 . . 2 . . 2 . . Rammed . | . . . . . . . . . . Targets Rammed 1 | . . . . . 1 . . . . Kicked 1 | . . . . . 1 . . . . Crushed . | . . . . . . . . . . Highest Temperature 251 | 18 153 . 225 24 9 20 58 32 251 Average Temperature 55 | 9 55 . 94 7 3 6 23 15 123 Received Heat Transfer 519 | . 135 . . 78 108 24 . . 174 Effects 3 | . . . . . . . . . 3 Interference 3 | . . . . . . . . . 3 Siege Activations . | . . . . . . . . . . Martial Activations . | . . . . . . . . . . Shielding Activations . | . . . . . . . . . . Robots Disrupted . | . . . . . . . . . . Combat Hostiles . | . . . . . . . . . . Robots Corrupted . | . . . . . . . . . . Combat Hostiles . | . . . . . . . . . . Parts Fried . | . . . . . . . . . . Impact Corruptions . | . . . . . . . . . . Robots Melted . | . . . . . . . . . . Combat Hostiles . | . . . . . . . . . . Parts Melted . | . . . . . . . . . . Heat Transferred 605 | 74 481 . . . . . . . 50 Parts Sabotaged . | . . . . . . . . . . Parts Stolen 1 | . . . . . . . 1 . . Parts Stripped . | . . . . . . . . . . Power Chain Reactions . | . . . . . . . . . . Alert | -11 -10 -10 -10 -9 -8 -7 -7 -7 -6 ------- Run | Yrd Mat Min Exi Min Mat Fac Low Low Fac Maximum Alert Level 1 | . . . . . 1 . . . 1 Low Security (%) 95 | 100 100 100 . 100 79 100 . . 84 Level 1 4 | . . . . . 20 . . . 15 Level 2 . | . . . . . . . . . . Level 3 . | . . . . . . . . . . Level 4 . | . . . . . . . . . . Level 5 . | . . . . . . . . . . High Security . | . . . . . . . . . . Max Security . | . . . . . . . . . . Peak Influence 335 | 5 87 10 . 88 335 144 . . 243 Initial 144 | . . 10 . . 20 144 . . . Average 34 | . 23 . . 20 83 54 . . 51 Influence Increases 1477 | 10 162 . . 258 494 105 120 30 298 Destroy 0b10 Robot/C 780 | . 100 . . 100 240 60 100 20 160 Destroy 0b10 Robot/NC 40 | 10 10 . . . . 5 . . 15 Destroy Leader 162 | . 20 . . 20 50 12 20 10 30 Allied During Kill 2 | . . . . 2 . . . . . Successful Hack 14 | . 5 . . . 9 . . . . Disable Machine 105 | . 15 . . . 30 15 . . 45 Destroy Structure 119 | . 12 . . 46 . 13 . . 48 Partial Spotted 15 | . . . . . 15 . . . . Lose Combat Pursuer 240 | . . . . 90 150 . . . . Influence Decreases 1364 | 10 134 28 . 206 227 415 129 30 185 Entered New Map 229 | . . 18 . . 32 175 4 . . Time Decay 965 | 10 134 10 . 176 175 240 125 30 65 Lost Part 150 | . . . . 10 20 . . . 120 Lost Ally 20 | . . . . 20 . . . . . Squads Dispatched 8 | . . . . 1 3 . . . 4 Investigation 1 | . . . . 1 . . . . . Extermination 1 | . . . . . . . . . 1 Reinforcement 4 | . . . . . 3 . . . 1 Assault . | . . . . . . . . . . Garrison 2 | . . . . . . . . . 2 Intercept . | . . . . . . . . . . Searches Triggered . | . . . . . . . . . . Construction Impeded 1 | . . . . . . . . . 1 Haulers Reinforced . | . . . . . . . . . . Active Scanning Responses . | . . . . . . . . . . Cargo Convoy Interrupts . | . . . . . . . . . . Stealth | -11 -10 -10 -10 -9 -8 -7 -7 -7 -6 --------- Run | Yrd Mat Min Exi Min Mat Fac Low Low Fac Distress Signals 3 | . 1 . . . 1 . . . 1 Communications Jammed . | . . . . . . . . . . Distress Signals . | . . . . . . . . . . Times Spotted 80 | . 10 . . 14 26 4 8 3 15 Peak Tracking Total 11 | . 4 . . 3 11 3 4 1 8 Tactical Retreats 9 | . . . . 4 3 . 2 . . Traps | -11 -10 -10 -10 -9 -8 -7 -7 -7 -6 ------- Run | Yrd Mat Min Exi Min Mat Fac Low Low Fac Traps Triggered . | . . . . . . . . . . Indirectly . | . . . . . . . . . . Trap Hack Attempts . | . . . . . . . . . . Triggered . | . . . . . . . . . . Disarmed . | . . . . . . . . . . Reprogrammed . | . . . . . . . . . . Reused . | . . . . . . . . . . Traps Extracted . | . . . . . . . . . . Installed . | . . . . . . . . . . Triggered . | . . . . . . . . . . Machines | -11 -10 -10 -10 -9 -8 -7 -7 -7 -6 ---------- Run | Yrd Mat Min Exi Min Mat Fac Low Low Fac Machines Disabled 7 | . 1 . . . 2 1 . . 3 Max in Single Turn 3 | . 1 . . . 1 1 . . 3 Machines Repaired . | . . . . . . . . . . Machines Dismantled . | . . . . . . . . . . Machines Sabotaged . | . . . . . . . . . . Overloaded Fab Kills . | . . . . . . . . . . Hacking | -11 -10 -10 -10 -9 -8 -7 -7 -7 -6 --------- Run | Yrd Mat Min Exi Min Mat Fac Low Low Fac Machines Accessed 14 | . 2 1 4 1 2 1 1 1 1 Terminals 5 | . 2 . . . 2 . . . 1 Fabricators . | . . . . . . . . . . Repair Stations 1 | . . . . . . 1 . . . Recycling Units . | . . . . . . . . . . Scanalyzers . | . . . . . . . . . . Garrison Access . | . . . . . . . . . . Total Hacks 18 | . 3 1 4 1 4 2 1 1 1 Successful 14 | . 1 1 4 1 3 2 1 1 . Failed 4 | . 2 . . . 1 . . . 1 Catastrophic 1 | . 1 . . . . . . . . Database Lockouts . | . . . . . . . . . . Manual 6 | . 3 . . . 2 . . . 1 Terminals 8 | . 3 . . . 4 . . . 1 Fabricators . | . . . . . . . . . . Repair Stations 2 | . . . . . . 2 . . . Recycling Units . | . . . . . . . . . . Scanalyzers . | . . . . . . . . . . Garrison Access . | . . . . . . . . . . Terminal Hacks 10 | . . 1 4 1 2 . 1 1 . Record 4 | . . . 4 . . . . . . Prototype ID Bank 1 | . . . . . 1 . . . . Open Door 4 | . . 1 . 1 . . 1 1 . Level Access Points 1 | . . . . . 1 . . . . Fabricator Hacks . | . . . . . . . . . . Repair Station Hacks 2 | . . . . . . 2 . . . Scan Component 1 | . . . . . . 1 . . . Repair 1 | . . . . . . 1 . . . Recycling Unit Hacks . | . . . . . . . . . . Scanalyzer . | . . . . . . . . . . Garrison Access Hacks . | . . . . . . . . . . Unauthorized Hacks 2 | . 1 . . . 1 . . . . Terminals 2 | . 1 . . . 1 . . . . Botnet 2 | . 1 . . . 1 . . . . Fabricators . | . . . . . . . . . . Repair Stations . | . . . . . . . . . . Recycling Units . | . . . . . . . . . . Scanalyzers . | . . . . . . . . . . Garrison Access . | . . . . . . . . . . Data Cores Recovered . | . . . . . . . . . . Used . | . . . . . . . . . . Hacking Detections 2 | . 1 . . . . 1 . . . Full Trace Events . | . . . . . . . . . . Feedback Events . | . . . . . . . . . . Feedback Blocked . | . . . . . . . . . . Robot Schematics Acquired . | . . . . . . . . . . Robots Built . | . . . . . . . . . . Authchips . | . . . . . . . . . . Time . | . . . . . . . . . . Total Robot Build Rating . | . . . . . . . . . . Part Schematics Acquired . | . . . . . . . . . . Parts Built . | . . . . . . . . . . Authchips . | . . . . . . . . . . Time . | . . . . . . . . . . Total Part Build Rating . | . . . . . . . . . . Parts Repaired 1 | . . . . . . 1 . . . Time 38 | . . . . . . 38 . . . Parts Recycled . | . . . . . . . . . . Recycled Matter . | . . . . . . . . . . Retrieved Matter . | . . . . . . . . . . Retrieved Components . | . . . . . . . . . . Parts Scanalyzed . | . . . . . . . . . . Part Schematics Acquired . | . . . . . . . . . . Parts Damaged . | . . . . . . . . . . Bothacking | -11 -10 -10 -10 -9 -8 -7 -7 -7 -6 ------------ Run | Yrd Mat Min Exi Min Mat Fac Low Low Fac Used RIF Installer . | . . . . . . . . . . Robots Hacked . | . . . . . . . . . . Non-combat . | . . . . . . . . . . Combat . | . . . . . . . . . . Robot Hacks Applied . | . . . . . . . . . . Relay Couplers Released . | . . . . . . . . . . Fabnet Peak Effective % . | . . . . . . . . . . Robots Rewired . | . . . . . . . . . . Allies Hacked . | . . . . . . . . . . Hacks Repelled . | . . . . . . . . . . Allies | -11 -10 -10 -10 -9 -8 -7 -7 -7 -6 -------- Run | Yrd Mat Min Exi Min Mat Fac Low Low Fac Total Allies 2 | . . 1 . 1 . . . . . Largest Group 1 | . . 1 . 1 . . . . . Highest-Rated Group 31 | . . 31 . 31 . . . . . Highest-Rated Ally 31 | . . 31 . 31 . . . . . Total Orders . | . . . . . . . . . . Ally Attacks 13 | . . . . 13 . . . . . Total Damage 165 | . . . . 165 . . . . . Kills 3 | . . . . 3 . . . . . Allies Corrupted . | . . . . . . . . . . Allies Melted . | . . . . . . . . . . Intel | -11 -10 -10 -10 -9 -8 -7 -7 -7 -6 ------- Run | Yrd Mat Min Exi Min Mat Fac Low Low Fac Active Infowar (turns) 6267 | 35 559 503 1370 955 422 636 982 467 338 Terrain 1292 | . . . . . 420 636 236 . . Seismic 6267 | 35 559 503 1370 955 422 636 982 467 338 Robot Analysis Total . | . . . . . . . . . . Derelict Logs Recovered 5 | . . 2 . 2 . . 1 . . Drone Launches . | . . . . . . . . . . Drone Recoveries . | . . . . . . . . . . Exploration | -11 -10 -10 -10 -9 -8 -7 -7 -7 -6 ------------- Run | Yrd Mat Min Exi Min Mat Fac Low Low Fac Turns Passed 6463 | 109 559 503 1370 955 422 636 982 467 460 Spaces Moved 3795 | 73 250 258 718 449 253 354 768 358 314 Core 8 | 8 . . . . . . . . . Treads . | . . . . . . . . . . Legs 3787 | 65 250 258 718 449 253 354 768 358 314 Wheels . | . . . . . . . . . . Hover . | . . . . . . . . . . Flight . | . . . . . . . . . . Fastest Speed 50 | 50 120 190 190 190 122 122 120 120 120 Average Speed 151 | 116 177 190 190 194 122 122 121 120 120 Slowest Speed 195 | 190 190 190 190 195 122 122 122 120 120 Overloaded Moves . | . . . . . . . . . . Propulsion Burnouts . | . . . . . . . . . . Robots Hopped . | . . . . . . . . . . Potential Cave-ins . | . . . . . . . . . . Cave-ins Triggered . | . . . . . . . . . . Exploration Rate (%) 39 | 4 28 49 92 73 23 8 81 26 6 Regions Visited 9 Branch Regions 5 Pre-discovered Areas 2 | . . 1 . 1 . . . . . Known Exits Taken 1 | . . . . . 1 . . . . Unknown Exits Taken 8 | 1 1 1 1 1 . 1 1 1 . Scrap Searched 14 | . . 1 . 1 . . 10 2 . Spaces Dug 62 | . . . . 20 . 3 27 . 12 Terrain Destroyed 232 | . 19 . . 56 . 12 91 . 54 Melee 7 | . . . . . . 3 . . 4 Projectile 3 | . . . . . . . 1 . 2 AOE 222 | . 19 . . 56 . 9 90 . 48 Terrain Rammed . | . . . . . . . . . . Walls Destroyed . | . . . . . . . . . . Machines Disabled . | . . . . . . . . . . Actions | -11 -10 -10 -10 -9 -8 -7 -7 -7 -6 --------- Run | Yrd Mat Min Exi Min Mat Fac Low Low Fac Total 4300 | 87 323 272 725 496 312 542 796 386 361 Wait 243 | . 41 7 2 5 8 153 4 19 4 Move 3786 | 72 249 257 717 448 252 353 767 357 314 Hop . | . . . . . . . . . . Pick Up 36 | 4 7 3 1 5 6 6 2 1 1 Fast Attach 16 | 7 . 1 2 1 2 2 . . 1 Attach 11 | . . . . . 4 2 2 . 3 Detach . | . . . . . . . . . . Swap 48 | 1 4 1 . 6 6 7 7 3 13 Drop 35 | . 1 3 3 9 6 7 3 1 2 Fire 115 | 3 21 . . 22 27 9 11 5 17 Melee 9 | . . . . . . 3 . . 6 Ram . | . . . . . . . . . . Kick 1 | . . . . . 1 . . . . Crush . | . . . . . . . . . . Escape Stasis . | . . . . . . . . . . Rewire . | . . . . . . . . . . Trap . | . . . . . . . . . . Miscellaneous . | . . . . . . . . . . Route ------- -11/Scrapyard -10/Materials (discovered 2 exits: [*Mat] / *Min) -10/Mines (discovered 2 exits: [*Mat] / *Exi) -10/Exiles -9/Mines -8/Materials (discovered 3 exits: *Fac x3) -7/Factory -7/Lower Caves -7/Lower Caves -6/Factory History --------- Turn | Location | Event 14 | -11/Scrapyard | Discovered new exit (range 16) 110 | -11/Scrapyard | Entered Materials 279 | -10/Materials | Discovered new exit (range 10) 302 | -10/Materials | Build established: Mutant 432 | -10/Materials | Discovered new exit (range 5) 669 | -10/Materials | Entered Mines 672 | -10/Mines | Received a Mining Laser from a helpful Derelict 697 | -10/Mines | Found a damaged Exp. Sensor Array with a note attached 701 | -10/Mines | Found Prototype Device 765 | -10/Mines | Learned Materials security intel 769 | -10/Mines | Met a Derelict who couldn't figure out how to use a Trap Extractor 1018 | -10/Mines | Discovered new exit (range 12) 1043 | -10/Mines | Found a hidden stash of uninstalled traps 1158 | -10/Mines | Deemed a non-threat by the Exiles lab entrance 1160 | -10/Mines | Discovered new exit (range 5) 1172 | -10/Mines | Entered Exiles 1172 | -10/Exiles | Found Exiles lab abandoned 2493 | -10/Exiles | Discovered new exit (range 14) 2542 | -10/Exiles | Entered Mines 2559 | -9/Mines | Met a Derelict shopkeep closing up shop 2749 | -9/Mines | Learned 8 Materials zone layouts 2805 | -9/Mines | Assembled infested the area 2810 | -9/Mines | Assisted by a Guerilla fighting off Assembled 3071 | -9/Mines | Escorted by a lone wolf Derelict 3091 | -9/Mines | Learned location of Storage (-8) 3423 | -9/Mines | Discovered new exit (range 15) 3467 | -9/Mines | Learned Materials emergency access door positions 3497 | -9/Mines | Entered Materials 3497 | -8/Materials | Evolved 4 slots: Propulsion x2, Utility x2 3498 | -8/Materials | Identified exit to Factory 3683 | -8/Materials | Build established: Scavenger-Mutant 3869 | -8/Materials | Destroyed 7 combat bots 3919 | -8/Materials | Entered Factory 3919 | -7/Factory | Evolved 2 slots: Power x1, Utility x1 4201 | -7/Factory | Repaired Carbon-fiber Leg 4297 | -7/Factory | Discovered new exit (range 16) 4555 | -7/Factory | Entered Lower Caves 4931 | -7/Lower Caves | Learned Factory terminal intel 4990 | -7/Lower Caves | Build established: Mutant 5149 | -7/Lower Caves | Encountered a Warlord checkpoint 5523 | -7/Lower Caves | Discovered new exit (range 11) 5537 | -7/Lower Caves | Entered another Lower Caves area 5538 | -7/Lower Caves | Encountered a Warlord checkpoint 5835 | -7/Lower Caves | Entered a destroyed Warlord outpost 5978 | -7/Lower Caves | Discovered new exit (range 10) 6004 | -7/Lower Caves | Entered Factory 6004 | -6/Factory | Evolved 2 slots: Propulsion x1, Weapon x1 6005 | -6/Factory | Loaded intel: 28 terminal locations 6338 | -6/Factory | Garrison activated, responded to threat 6375 | -6/Factory | Spotted B-75 Beast 6377 | -6/Factory | Destroyed 7 combat bots 6464 | -6/Factory | Self-destructed Last Messages --------------- 06432_ Hvy. Rocket Launcher destroyed. 06433_ Slug penetrates Terminal. 06434_ Minigun destroyed. 06436_ Power Conduit explodes. 06436_ K-01 Serf collects debris. 06437_ Acquired 97 matter. 06438_ Adv. Targeting Computer destroyed. 06439_ K-01 Serf collects debris. 06443_ Carbon-fiber Leg destroyed. 06445_ Manufacturing Mainframe disabled. 06448_ Angular Momentum Engine destroyed. 06454_ Lyr. Light Armor Plating destroyed. 06454_ S-27 Virus Lgt. Nuclear Core blasted off. 06454_ S-27 Virus destroyed. 06458_ Imp. Carbon-fiber Leg destroyed. 06459_ Slug penetrates S-27 Virus. 06459_ S-27 Virus knocked back. 06462_ Aluminum Leg destroyed. 06462_ Critical hit (Burn: +37). 06462_ Destroyed Lgt. Nuclear Core. Map ----- +----------------------------------------------------+ | ?????????????????????????????????????????????????? | | ?????????????????????????????????????????????????? | | ?????????????????????????????????????????????????? | | ?????????????????????????????????????????????????? | | ?????????????????????????????????????????????????? | | ?????????????????????????????????????????????????? | | ?????????????????????????????????????????????????? | | ?????????????????????????????????????????????????? | | ?????????????????????????????????????????????????? | | ?????????????????????????????????????????????????? | | ?????????????????????????????????????????????????? | | ???????????????????????????????????####+##?????? ? | | ???????????????????????????????????# ???? | | ??????????????????????????????????## | | ??????????????????????????????????? """ | | ??????????????????????????????????? ""T"" | | ???????????????????????????????????? "" "" | | ???????????????????????????????????? | | ????????????????????????????????????? | | ????????????????????????############## | | ????????????????????????# % # | | ????????????????????????#s"""" """" # | | ????????????????????????# """" """" +% | | ????????????????????????; """" """" " " | | ????????????????????????# """"="" ; | | ????????????????????????#@ %hg ; | | ????????????????????????# """" """" #!!! | | ????????????????????????# """" """"% #!!! [[ | | ????????????????????????# """" """" #!! [! | | ????????????????????????#s"""" """" # | | ????????????????????????# # | | ????????????????????????# !# #####% | | ????????????????????????############## #?# # = | | ???????????????????????????????????####/#### # | | ???????????????????????????????????# " | | ???????????????????????????????????# ## | | ???????????????????????????????????#[ # | | ???????????????????????????????????# #T | | ???????????????????????????????????# "" ## | | ???????????????????????????????????# "F ## | | ???????????????????????????????????# "" ## | | ???????????????????????????????????# "" ## | | ???????????????????????????????????# ## | | ???????????????????????????????????########### | | ?????????????????????????????????????????????# | | ?????????????????????????????????????????????# | | ?????????????????????????????????????????????##### | | ?????????????????????????????????????????????????? | | ?????????????????????????????????????????????????? | | ?????????????????????????????????????????????????? | +----------------------------------------------------+ Best States ------------- Heat Dissipation 37 Energy Generation 27 Energy Capacity 360 Matter Stores 300 Matter Capacity 300 Sight Range 16 Terrain Scan Range 16 Terrain Scan Density 110 Armor Coverage 150 Weapon Cycling 15 Evasion (%) 55 Targeting Accuracy 8 Item Schematics ----------------- None Robot Schematics ------------------ None Fabricated ------------ Nothing Repaired ---------- Carbon-fiber Leg | 54% | -7/Factory Alien Tech Used ----------------- None Achievements -------------- Omniscient Cartographer Remodeling Challenges ------------ None Game ------ Seed DefenseWarlordSpecial Manual? 0 Play Time 01:06:57 Cumulative 27.8 hours Start 2025.07.14 @ 22:24:53 End 2025.07.16 @ 21:40:15 Sessions 4 Manual Loads 0 Difficulty Rogue Special Mode None Game No. 28 Rogue 28 Adventurer 0 Explorer 0 Win Type - Total 0 Types 0/0/0/0/0/0/0/0/0/0 Lore% 21 Gallery% 17 Achievement% 19 Wizard Run 0 Options --------- Layout 0 ASCII 0 Keyboard 1 Movement Numpad Keybinds 0 Fullscreen 1 Font 18/SmallcapsGlow Map View 76x50 Zoom Use 0% Tactical HUD 1 Map Filters NONE Filters NONE Steam 1 RUN: c8f4d4c4-bd9f-4885-bc3b-7b468e3638ef